[Event "*** Titled Tuesday Blitz"]
[Site "Chess.com"]
[Date "2020.05.26"]
[Round "8"]
[White "Swarajan"]
[Black "Khayala13"]
[Result "1-0"]
[WhiteElo "2145"]
[BlackElo "2316"]
[TimeControl "180+1"]
[EndTime "11:38:55 PDT"]
[Termination "Swarajan won by resignation"]

1. d4 {[%clk 0:03:00.9]} 1... Nf6 {[%clk 0:02:59.2]} 2. c4 {[%clk 0:03:00.9]}
2... e6 {[%clk 0:02:57]} 3. Nf3 {[%clk 0:03:00.8]} 3... b6 {[%clk 0:02:49.9]} 4.
g3 {[%clk 0:03:00.9]} 4... Ba6 {[%clk 0:02:49]} 5. Qc2 {[%clk 0:03:00.9]} 5...
c5 {[%clk 0:02:42.7]} 6. Bg2 {[%clk 0:02:58.6]} 6... Bb7 {[%clk 0:02:40.2]} 7.
d5 {[%clk 0:02:57.2]} 7... exd5 {[%clk 0:02:38.7]} 8. Nh4 {[%clk 0:02:56.8]}
8... Nc6 {[%clk 0:02:30.6]} 9. O-O {[%clk 0:02:53.3]} 9... Nd4 {[%clk
0:02:25.1]} 10. Qd1 {[%clk 0:02:46.3]} 10... Be7 {[%clk 0:02:03.9]} 11. cxd5
{[%clk 0:02:45]} 11... Bxd5 {[%clk 0:01:27.5]} 12. Bxd5 {[%clk 0:02:31.1]} 12...
Nxd5 {[%clk 0:01:28.4]} 13. e3 {[%clk 0:02:31.2]} 13... Bxh4 {[%clk 0:01:25.8]}
14. gxh4 {[%clk 0:02:30.4]} 14... Qxh4 {[%clk 0:01:15]} 15. exd4 {[%clk
0:02:30.1]} 15... O-O {[%clk 0:01:02.6]} 16. dxc5 {[%clk 0:02:21.2]} 16... Nf6
{[%clk 0:00:56.1]} 17. cxb6 {[%clk 0:02:19.7]} 17... Ng4 {[%clk 0:00:53.3]} 18.
Bf4 {[%clk 0:02:15.2]} 18... axb6 {[%clk 0:00:52.1]} 19. Bg3 {[%clk 0:02:13.1]}
19... Qh3 {[%clk 0:00:52.2]} 20. Nc3 {[%clk 0:02:09.7]} 20... Ra5 {[%clk
0:00:51]} 21. Nd5 {[%clk 0:02:05.5]} 21... Re8 {[%clk 0:00:29.6]} 22. Nf4 {[%clk
0:02:04.1]} 22... Qh6 {[%clk 0:00:25.9]} 23. Qxg4 {[%clk 0:02:03.3]} 23... Rg5
{[%clk 0:00:25.6]} 24. Qh3 {[%clk 0:01:58.6]} 24... Qc6 {[%clk 0:00:24.9]} 25.
Qg2 {[%clk 0:01:57.1]} 25... Qf6 {[%clk 0:00:23.9]} 26. Rae1 {[%clk 0:01:55.2]}
26... Rc8 {[%clk 0:00:20.8]} 27. Nd5 {[%clk 0:01:52.6]} 1-0

[Event "*** Titled Tuesday Blitz"]
[Site "Chess.com"]
[Date "2020.05.26"]
[Round "8"]
[White "K_A_S_T_O_R"]
[Black "Sergey85Rodchenkov"]
[Result "1-0"]
[WhiteElo "2717"]
[BlackElo "2520"]
[TimeControl "180+1"]
[EndTime "11:39:00 PDT"]
[Termination "K_A_S_T_O_R won by resignation"]

1. e4 {[%clk 0:03:00.9]} 1... c5 {[%clk 0:02:59.5]} 2. Nf3 {[%clk 0:03:00.6]}
2... e6 {[%clk 0:02:59.9]} 3. d4 {[%clk 0:03:01.1]} 3... cxd4 {[%clk 0:03:00.5]}
4. Nxd4 {[%clk 0:03:01.8]} 4... a6 {[%clk 0:03:01.1]} 5. Bd3 {[%clk 0:03:01.3]}
5... Qc7 {[%clk 0:03:00.3]} 6. O-O {[%clk 0:03:00.9]} 6... Nf6 {[%clk
0:03:00.5]} 7. Qe2 {[%clk 0:03:01.1]} 7... d6 {[%clk 0:02:59.2]} 8. f4 {[%clk
0:03:00.7]} 8... Nbd7 {[%clk 0:02:55.9]} 9. c4 {[%clk 0:02:59.9]} 9... g6 {[%clk
0:02:54.9]} 10. f5 {[%clk 0:02:57.6]} 10... gxf5 {[%clk 0:02:48.9]} 11. exf5
{[%clk 0:02:57.2]} 11... e5 {[%clk 0:02:49.8]} 12. Ne6 {[%clk 0:02:57.3]} 12...
fxe6 {[%clk 0:02:30.6]} 13. fxe6 {[%clk 0:02:56.7]} 13... Bg7 {[%clk 0:02:27]}
14. exd7+ {[%clk 0:02:55.2]} 14... Qxd7 {[%clk 0:02:17.3]} 15. Bg5 {[%clk
0:02:40]} 15... O-O {[%clk 0:02:14.4]} 16. Nc3 {[%clk 0:02:40]} 16... Qg4 {[%clk
0:02:09]} 17. Qd2 {[%clk 0:02:34.9]} 17... Be6 {[%clk 0:02:00.9]} 18. h3 {[%clk
0:02:26.3]} 18... Qd4+ {[%clk 0:01:47.7]} 19. Be3 {[%clk 0:02:25.9]} 19... Qh4
{[%clk 0:01:47.6]} 20. Bg5 {[%clk 0:02:10.4]} 20... Qd4+ {[%clk 0:01:46.8]} 21.
Kh2 {[%clk 0:02:08.5]} 21... Bxc4 {[%clk 0:01:08.3]} 22. Bxc4+ {[%clk
0:02:02.3]} 22... Qxc4 {[%clk 0:01:08.2]} 23. Bxf6 {[%clk 0:02:00.1]} 23... Rxf6
{[%clk 0:01:02.6]} 24. Rxf6 {[%clk 0:01:38.7]} 24... Bxf6 {[%clk 0:01:03.5]} 25.
Qxd6 {[%clk 0:01:38]} 25... Qf4+ {[%clk 0:01:01.7]} 26. Kh1 {[%clk 0:01:38]}
26... Rd8 {[%clk 0:00:46.5]} 27. Qe6+ {[%clk 0:01:36.4]} 27... Kh8 {[%clk
0:00:38.9]} 28. Nd5 {[%clk 0:01:33.4]} 28... Rxd5 {[%clk 0:00:29.1]} 29. Qxd5
{[%clk 0:01:33.2]} 29... e4 {[%clk 0:00:29.6]} 30. Qf7 {[%clk 0:01:30.1]} 1-0

[Event "*** Titled Tuesday Blitz"]
[Site "Chess.com"]
[Date "2020.05.26"]
[Round "8"]
[White "Mostii"]
[Black "HanSchut"]
[Result "1-0"]
[WhiteElo "2358"]
[BlackElo "2172"]
[TimeControl "180+1"]
[EndTime "11:39:00 PDT"]
[Termination "Mostii won by resignation"]

1. d4 {[%clk 0:03:00.9]} 1... Nf6 {[%clk 0:02:59.5]} 2. Nf3 {[%clk 0:02:58]}
2... g6 {[%clk 0:02:58.6]} 3. g3 {[%clk 0:02:57.3]} 3... Bg7 {[%clk 0:02:58.5]}
4. Bg2 {[%clk 0:02:57.6]} 4... O-O {[%clk 0:02:58.2]} 5. O-O {[%clk 0:02:56.5]}
5... d5 {[%clk 0:02:59.1]} 6. b3 {[%clk 0:02:56.2]} 6... c5 {[%clk 0:02:58.8]}
7. Bb2 {[%clk 0:02:56.3]} 7... cxd4 {[%clk 0:02:59.3]} 8. Bxd4 {[%clk
0:02:52.2]} 8... Nc6 {[%clk 0:02:59.5]} 9. Bb2 {[%clk 0:02:51.8]} 9... Bf5
{[%clk 0:02:49.7]} 10. Nbd2 {[%clk 0:02:44.7]} 10... Rc8 {[%clk 0:02:48.6]} 11.
c4 {[%clk 0:02:43.5]} 11... Ne4 {[%clk 0:02:29.7]} 12. Bxg7 {[%clk 0:02:38.9]}
12... Kxg7 {[%clk 0:02:29.4]} 13. cxd5 {[%clk 0:02:39.2]} 13... Nc3 {[%clk
0:02:02.1]} 14. Qe1 {[%clk 0:02:35.1]} 14... Nb4 {[%clk 0:02:02.2]} 15. Nc4
{[%clk 0:02:27.5]} 15... Ne4 {[%clk 0:01:38.2]} 16. Qxb4 {[%clk 0:02:24.8]}
16... Qxd5 {[%clk 0:01:27.5]} 17. Rad1 {[%clk 0:02:17.2]} 17... Qe6 {[%clk
0:01:18.6]} 18. Nd4 {[%clk 0:02:16.5]} 18... Qf6 {[%clk 0:01:18.5]} 19. Nxf5+
{[%clk 0:02:15.8]} 19... gxf5 {[%clk 0:01:18.2]} 20. Bxe4 {[%clk 0:02:11.7]}
20... fxe4 {[%clk 0:01:18.1]} 21. Qxb7 {[%clk 0:02:12.2]} 21... Qg6 {[%clk
0:01:10.7]} 22. Qxa7 {[%clk 0:02:09]} 22... Rb8 {[%clk 0:01:04.1]} 23. Qd4+
{[%clk 0:02:08]} 23... f6 {[%clk 0:01:00.2]} 24. Qe3 {[%clk 0:02:04.2]} 24... e5
{[%clk 0:00:55.6]} 25. Rd7+ {[%clk 0:02:03.4]} 25... Kh8 {[%clk 0:00:53.4]} 26.
Rfd1 {[%clk 0:01:45]} 26... Rbe8 {[%clk 0:00:50.4]} 27. Qc5 {[%clk 0:01:34]}
27... Rf7 {[%clk 0:00:41.7]} 28. Rxf7 {[%clk 0:01:29]} 28... Qxf7 {[%clk
0:00:42.6]} 29. Qd5 {[%clk 0:01:23.7]} 29... Qg6 {[%clk 0:00:40.6]} 30. Nd6
{[%clk 0:01:22.7]} 30... Rf8 {[%clk 0:00:40.2]} 31. Qxe4 {[%clk 0:01:21.2]} 1-0

[Event "*** Titled Tuesday Blitz"]
[Site "Chess.com"]
[Date "2020.05.26"]
[Round "8"]
[White "suyu28"]
[Black "Superfelix"]
[Result "0-1"]
[WhiteElo "2605"]
[BlackElo "2485"]
[TimeControl "180+1"]
[EndTime "11:39:02 PDT"]
[Termination "Superfelix won by resignation"]

1. e4 {[%clk 0:03:00.9]} 1... c6 {[%clk 0:02:59.3]} 2. d4 {[%clk 0:02:59.8]}
2... g6 {[%clk 0:02:59.8]} 3. Nf3 {[%clk 0:02:59]} 3... d5 {[%clk 0:02:47.8]} 4.
Nc3 {[%clk 0:02:58.1]} 4... dxe4 {[%clk 0:02:47.7]} 5. Nxe4 {[%clk 0:02:55.5]}
5... Nf6 {[%clk 0:02:48.6]} 6. Bd3 {[%clk 0:02:55.1]} 6... Bg7 {[%clk
0:02:48.1]} 7. O-O {[%clk 0:02:54.1]} 7... O-O {[%clk 0:02:47.4]} 8. c3 {[%clk
0:02:52.5]} 8... a5 {[%clk 0:02:46]} 9. Re1 {[%clk 0:02:52]} 9... Na6 {[%clk
0:02:45.3]} 10. Bg5 {[%clk 0:02:51.1]} 10... Nc7 {[%clk 0:02:45.2]} 11. Nxf6+
{[%clk 0:02:49.7]} 11... exf6 {[%clk 0:02:44.3]} 12. Bd2 {[%clk 0:02:42.2]}
12... a4 {[%clk 0:02:44.1]} 13. c4 {[%clk 0:02:38.3]} 13... Bg4 {[%clk
0:02:40.2]} 14. Bc3 {[%clk 0:02:37.5]} 14... b5 {[%clk 0:02:38.2]} 15. h3 {[%clk
0:02:32.3]} 15... Be6 {[%clk 0:02:35.9]} 16. d5 {[%clk 0:02:30.3]} 16... bxc4
{[%clk 0:02:27.3]} 17. dxe6 {[%clk 0:02:27.5]} 17... Qxd3 {[%clk 0:02:27.3]} 18.
e7 {[%clk 0:02:25.4]} 18... Rfe8 {[%clk 0:02:25.8]} 19. Nd4 {[%clk 0:02:23.7]}
19... c5 {[%clk 0:02:04.8]} 20. Nc6 {[%clk 0:02:20.9]} 20... Ra6 {[%clk
0:02:03]} 21. Na5 {[%clk 0:02:13.8]} 21... f5 {[%clk 0:01:55.5]} 22. Qxa4 {[%clk
0:02:01.3]} 22... Bxc3 {[%clk 0:01:51.5]} 23. bxc3 {[%clk 0:01:34.8]} 23... Qxc3
{[%clk 0:01:47.9]} 24. Qd7 {[%clk 0:01:07.1]} 24... Qxa5 {[%clk 0:01:46.5]} 25.
Rab1 {[%clk 0:01:07.2]} 25... Re6 {[%clk 0:01:38.2]} 26. Rxe6 {[%clk 0:01:04.9]}
26... fxe6 {[%clk 0:01:39.1]} 27. Rb7 {[%clk 0:01:01.7]} 27... Qe1+ {[%clk
0:01:33.7]} 28. Kh2 {[%clk 0:01:01.5]} 28... Qe5+ {[%clk 0:01:33.7]} 29. g3
{[%clk 0:00:57]} 29... Qe2 {[%clk 0:01:28.5]} 30. Kg1 {[%clk 0:00:51.6]} 30...
Qe1+ {[%clk 0:01:27.8]} 0-1

[Event "*** Titled Tuesday Blitz"]
[Site "Chess.com"]
[Date "2020.05.26"]
[Round "8"]
[White "davidkalashian"]
[Black "Kostya26"]
[Result "1-0"]
[WhiteElo "2608"]
[BlackElo "2456"]
[TimeControl "180+1"]
[EndTime "11:39:08 PDT"]
[Termination "davidkalashian won by resignation"]

1. e4 {[%clk 0:03:00.9]} 1... c5 {[%clk 0:02:58.9]} 2. Nc3 {[%clk 0:03:00.1]}
2... Nc6 {[%clk 0:02:58.5]} 3. Nf3 {[%clk 0:02:59.2]} 3... e5 {[%clk 0:02:57.5]}
4. Bc4 {[%clk 0:02:58.5]} 4... Be7 {[%clk 0:02:57.5]} 5. d3 {[%clk 0:02:59]}
5... Nf6 {[%clk 0:02:58]} 6. Nd2 {[%clk 0:02:57]} 6... O-O {[%clk 0:02:55.9]} 7.
Nf1 {[%clk 0:02:57.4]} 7... d6 {[%clk 0:02:56.4]} 8. Ne3 {[%clk 0:02:57.2]} 8...
Be6 {[%clk 0:02:56.9]} 9. Ncd5 {[%clk 0:02:57.1]} 9... Rb8 {[%clk 0:02:51]} 10.
c3 {[%clk 0:02:56.2]} 10... Na5 {[%clk 0:02:43.3]} 11. O-O {[%clk 0:02:48.6]}
11... b5 {[%clk 0:02:37.6]} 12. Bb3 {[%clk 0:02:41.7]} 12... Nxb3 {[%clk
0:02:37.6]} 13. Nxf6+ {[%clk 0:02:41]} 13... Bxf6 {[%clk 0:02:35.9]} 14. axb3
{[%clk 0:02:41.9]} 14... Qd7 {[%clk 0:02:31.6]} 15. Ra6 {[%clk 0:02:22.1]} 15...
Rb6 {[%clk 0:02:12.7]} 16. Ra5 {[%clk 0:02:19.3]} 16... Bg5 {[%clk 0:02:01.9]}
17. Nd5 {[%clk 0:02:17.5]} 17... Bxd5 {[%clk 0:01:57]} 18. exd5 {[%clk
0:02:17.4]} 18... Bxc1 {[%clk 0:01:43.3]} 19. Qxc1 {[%clk 0:02:18.3]} 19... f5
{[%clk 0:01:43.9]} 20. Qe3 {[%clk 0:02:13.8]} 20... f4 {[%clk 0:01:39.2]} 21.
Qf3 {[%clk 0:02:11]} 21... Rf7 {[%clk 0:01:34.5]} 22. Rfa1 {[%clk 0:02:10.4]}
22... Rb7 {[%clk 0:01:34.5]} 23. Ra6 {[%clk 0:02:09.7]} 23... g5 {[%clk
0:01:19.9]} 24. h3 {[%clk 0:02:08.3]} 24... Rg7 {[%clk 0:01:17.7]} 25. Qg4
{[%clk 0:02:08.2]} 25... Qxg4 {[%clk 0:01:12.7]} 26. hxg4 {[%clk 0:02:09.1]}
26... Rgd7 {[%clk 0:01:11.5]} 27. Kf1 {[%clk 0:02:01.4]} 27... Kf7 {[%clk
0:01:10.7]} 28. Ke2 {[%clk 0:02:01.9]} 28... Ke8 {[%clk 0:01:06.9]} 29. Kf3
{[%clk 0:02:01.3]} 29... Kf7 {[%clk 0:01:03.5]} 30. Ke4 {[%clk 0:02:00.4]} 30...
Kf6 {[%clk 0:01:03.9]} 31. Rh1 {[%clk 0:01:58.2]} 31... Kg6 {[%clk 0:01:02.9]}
32. Rha1 {[%clk 0:01:55.7]} 32... Kf6 {[%clk 0:00:55.7]} 33. Rc6 {[%clk
0:01:55.9]} 33... Rbc7 {[%clk 0:00:47.7]} 34. Raa6 {[%clk 0:01:54.1]} 34... Ke7
{[%clk 0:00:40.4]} 35. Rxc7 {[%clk 0:01:48]} 35... Rxc7 {[%clk 0:00:38.9]} 36.
Kf5 {[%clk 0:01:48.7]} 36... h6 {[%clk 0:00:35.5]} 37. f3 {[%clk 0:01:46.8]}
37... Rd7 {[%clk 0:00:33.5]} 38. Kg6 {[%clk 0:01:46.3]} 38... Rc7 {[%clk
0:00:30]} 39. Kxh6 {[%clk 0:01:43.7]} 39... Kf6 {[%clk 0:00:29.6]} 40. Rxd6+
{[%clk 0:01:41.9]} 1-0

[Event "*** Titled Tuesday Blitz"]
[Site "Chess.com"]
[Date "2020.05.26"]
[Round "8"]
[White "Sibelephant"]
[Black "Gabix_94"]
[Result "1/2-1/2"]
[WhiteElo "3167"]
[BlackElo "2932"]
[TimeControl "180+1"]
[EndTime "11:39:13 PDT"]
[Termination "Game drawn by repetition"]

1. c4 {[%clk 0:03:00.2]} 1... c5 {[%clk 0:02:58.9]} 2. Nc3 {[%clk 0:03:00]} 2...
Nc6 {[%clk 0:02:59]} 3. g3 {[%clk 0:03:00.5]} 3... g6 {[%clk 0:02:59]} 4. Bg2
{[%clk 0:03:01.2]} 4... Bg7 {[%clk 0:02:59.4]} 5. Nf3 {[%clk 0:03:01.9]} 5...
Nf6 {[%clk 0:02:58.6]} 6. d4 {[%clk 0:02:59.2]} 6... cxd4 {[%clk 0:02:58.6]} 7.
Nxd4 {[%clk 0:02:59.9]} 7... O-O {[%clk 0:02:59.1]} 8. O-O {[%clk 0:03:00.2]}
8... Qa5 {[%clk 0:02:59]} 9. Nc2 {[%clk 0:03:00.5]} 9... d6 {[%clk 0:02:55.6]}
10. Bd2 {[%clk 0:02:57.3]} 10... Qh5 {[%clk 0:02:47.5]} 11. e4 {[%clk
0:02:57.4]} 11... Qxd1 {[%clk 0:02:39.7]} 12. Raxd1 {[%clk 0:02:53.8]} 12... Ne5
{[%clk 0:02:39.3]} 13. b3 {[%clk 0:02:53.5]} 13... Bd7 {[%clk 0:02:26.6]} 14.
Ne3 {[%clk 0:02:46.8]} 14... Rfc8 {[%clk 0:02:22.1]} 15. h3 {[%clk 0:02:30.2]}
15... Kf8 {[%clk 0:02:15.6]} 16. f4 {[%clk 0:02:24.4]} 16... Nd3 {[%clk
0:02:07.2]} 17. e5 {[%clk 0:01:27.5]} 17... dxe5 {[%clk 0:01:54.8]} 18. fxe5
{[%clk 0:01:28.1]} 18... Nxe5 {[%clk 0:01:53.2]} 19. Bxb7 {[%clk 0:01:28]} 19...
Bxh3 {[%clk 0:01:52.3]} 20. Rf2 {[%clk 0:01:25.9]} 20... h5 {[%clk 0:01:27.3]}
21. Bxa8 {[%clk 0:01:25]} 21... Rxa8 {[%clk 0:01:27.4]} 22. Bc1 {[%clk
0:01:01.2]} 22... Nfg4 {[%clk 0:01:20.4]} 23. Nxg4 {[%clk 0:00:48.6]} 23... Bxg4
{[%clk 0:01:21.3]} 24. Rdf1 {[%clk 0:00:46.9]} 24... Bh3 {[%clk 0:01:13.1]} 25.
Rd1 {[%clk 0:00:42.6]} 25... Bg4 {[%clk 0:01:12.3]} 26. Rdf1 {[%clk 0:00:31.6]}
26... Bh3 {[%clk 0:01:11.5]} 27. Rd1 {[%clk 0:00:31.8]} 27... Bg4 {[%clk
0:01:08.2]} 1/2-1/2

[Event "*** Titled Tuesday Blitz"]
[Site "Chess.com"]
[Date "2020.05.26"]
[Round "8"]
[White "DanielDardha2005"]
[Black "TenisMaster"]
[Result "0-1"]
[WhiteElo "2652"]
[BlackElo "2822"]
[TimeControl "180+1"]
[EndTime "11:39:15 PDT"]
[Termination "TenisMaster won by checkmate"]

1. Nf3 {[%clk 0:03:00.9]} 1... d5 {[%clk 0:02:59.3]} 2. c4 {[%clk 0:03:01]} 2...
e6 {[%clk 0:02:52.7]} 3. d4 {[%clk 0:03:00.7]} 3... Nf6 {[%clk 0:02:52.4]} 4.
Nc3 {[%clk 0:03:00.9]} 4... c6 {[%clk 0:02:52.6]} 5. e3 {[%clk 0:02:59.5]} 5...
Nbd7 {[%clk 0:02:52.6]} 6. b3 {[%clk 0:02:58.9]} 6... Bd6 {[%clk 0:02:51.9]} 7.
Bb2 {[%clk 0:02:58.4]} 7... O-O {[%clk 0:02:51.5]} 8. Be2 {[%clk 0:02:57.2]}
8... b6 {[%clk 0:02:51.7]} 9. O-O {[%clk 0:02:57]} 9... Bb7 {[%clk 0:02:52.1]}
10. Qc2 {[%clk 0:02:57.2]} 10... Rc8 {[%clk 0:02:52.2]} 11. Rac1 {[%clk
0:02:55.5]} 11... c5 {[%clk 0:02:52.4]} 12. Rfd1 {[%clk 0:02:52]} 12... cxd4
{[%clk 0:02:44.7]} 13. Nxd4 {[%clk 0:02:35.7]} 13... a6 {[%clk 0:02:25.7]} 14.
Nf3 {[%clk 0:02:21]} 14... Qe7 {[%clk 0:02:20.2]} 15. cxd5 {[%clk 0:02:13.8]}
15... exd5 {[%clk 0:02:12.9]} 16. Nd4 {[%clk 0:02:07.6]} 16... g6 {[%clk
0:02:11.8]} 17. g3 {[%clk 0:01:59]} 17... Ne4 {[%clk 0:02:11.2]} 18. Qb1 {[%clk
0:01:43.3]} 18... Ndf6 {[%clk 0:02:10.4]} 19. Nxe4 {[%clk 0:01:41.7]} 19... Nxe4
{[%clk 0:02:09.5]} 20. Rxc8 {[%clk 0:01:37.2]} 20... Rxc8 {[%clk 0:02:10.4]} 21.
Rc1 {[%clk 0:01:37.3]} 21... Re8 {[%clk 0:02:09.1]} 22. Qd3 {[%clk 0:01:27.5]}
22... Be5 {[%clk 0:02:02.7]} 23. Bf3 {[%clk 0:01:16.3]} 23... Qf6 {[%clk
0:01:57.8]} 24. Kg2 {[%clk 0:01:09.7]} 24... h5 {[%clk 0:01:50.4]} 25. h4 {[%clk
0:00:49]} 25... Qd6 {[%clk 0:01:42.2]} 26. Bxe4 {[%clk 0:00:32]} 26... dxe4
{[%clk 0:01:43.1]} 27. Qd2 {[%clk 0:00:26]} 27... Qf6 {[%clk 0:01:39.7]} 28. Rc2
{[%clk 0:00:22]} 28... Bc8 {[%clk 0:01:34.1]} 29. Ne2 {[%clk 0:00:18.7]} 29...
Qf3+ {[%clk 0:01:31.3]} 30. Kg1 {[%clk 0:00:18.8]} 30... Bh3 {[%clk 0:01:31.1]}
31. Qd8 {[%clk 0:00:10.2]} 31... Qg2# {[%clk 0:01:29.3]} 0-1

[Event "*** Titled Tuesday Blitz"]
[Site "Chess.com"]
[Date "2020.05.26"]
[Round "8"]
[White "WiktoriaPOL"]
[Black "mr65"]
[Result "1/2-1/2"]
[WhiteElo "2003"]
[BlackElo "2161"]
[TimeControl "180+1"]
[EndTime "11:39:18 PDT"]
[Termination "Game drawn by repetition"]

1. c4 {[%clk 0:03:00.9]} 1... Nf6 {[%clk 0:02:55.7]} 2. Nc3 {[%clk 0:03:00.4]}
2... g6 {[%clk 0:02:55.7]} 3. g3 {[%clk 0:03:00.2]} 3... Bg7 {[%clk 0:02:56.2]}
4. Bg2 {[%clk 0:03:00.8]} 4... O-O {[%clk 0:02:56.2]} 5. e4 {[%clk 0:03:01.4]}
5... d6 {[%clk 0:02:56.1]} 6. Nge2 {[%clk 0:03:01.9]} 6... c5 {[%clk 0:02:52.7]}
7. O-O {[%clk 0:03:02.1]} 7... Nc6 {[%clk 0:02:52.5]} 8. d3 {[%clk 0:03:02.4]}
8... Ne8 {[%clk 0:02:51.7]} 9. f4 {[%clk 0:03:01.7]} 9... Nc7 {[%clk 0:02:51.5]}
10. Be3 {[%clk 0:02:58.4]} 10... Ne6 {[%clk 0:02:50.4]} 11. f5 {[%clk
0:02:57.4]} 11... Ned4 {[%clk 0:02:50]} 12. g4 {[%clk 0:02:42.1]} 12... Nxe2+
{[%clk 0:02:48.7]} 13. Qxe2 {[%clk 0:02:41.2]} 13... Nd4 {[%clk 0:02:48.2]} 14.
Qd2 {[%clk 0:02:39.8]} 14... f6 {[%clk 0:02:41.1]} 15. Ne2 {[%clk 0:02:31.5]}
15... Nxe2+ {[%clk 0:02:35.1]} 16. Qxe2 {[%clk 0:02:32.4]} 16... e5 {[%clk
0:02:29.3]} 17. Qd2 {[%clk 0:02:27.3]} 17... g5 {[%clk 0:02:23]} 18. h4 {[%clk
0:02:22.4]} 18... h6 {[%clk 0:02:21.2]} 19. hxg5 {[%clk 0:02:21.4]} 19... hxg5
{[%clk 0:02:16.8]} 20. b4 {[%clk 0:02:10]} 20... b6 {[%clk 0:02:15.4]} 21. b5
{[%clk 0:01:46.3]} 21... a5 {[%clk 0:02:13.2]} 22. a4 {[%clk 0:01:27]} 22... Kf7
{[%clk 0:02:10.8]} 23. Kf2 {[%clk 0:01:26.3]} 23... Bd7 {[%clk 0:02:06.9]} 24.
Rh1 {[%clk 0:01:25.6]} 24... Qe7 {[%clk 0:02:05.2]} 25. Rh5 {[%clk 0:01:23.5]}
25... Rh8 {[%clk 0:02:04.7]} 26. Rah1 {[%clk 0:01:21.7]} 26... Rxh5 {[%clk
0:02:04.1]} 27. Rxh5 {[%clk 0:01:14]} 27... Rh8 {[%clk 0:02:02.1]} 28. Rxh8
{[%clk 0:01:10.8]} 28... Bxh8 {[%clk 0:02:00.9]} 29. Qe1 {[%clk 0:01:04.6]}
29... Bg7 {[%clk 0:01:58.4]} 30. Qh1 {[%clk 0:01:03.8]} 30... Qf8 {[%clk
0:01:56.1]} 31. Qh5+ {[%clk 0:01:02.9]} 31... Ke7 {[%clk 0:01:55.6]} 32. Bf3
{[%clk 0:01:01.3]} 32... Be8 {[%clk 0:01:54.6]} 33. Qh3 {[%clk 0:01:00]} 33...
Qh8 {[%clk 0:01:53.5]} 34. Kg2 {[%clk 0:00:59.9]} 34... Qxh3+ {[%clk 0:01:50.1]}
35. Kxh3 {[%clk 0:00:59.9]} 35... Bh6 {[%clk 0:01:48]} 36. Bd2 {[%clk
0:00:55.5]} 36... Bg7 {[%clk 0:01:47.4]} 37. Kg3 {[%clk 0:00:51.6]} 37... Bf7
{[%clk 0:01:45]} 38. Kf2 {[%clk 0:00:44.5]} 38... Be8 {[%clk 0:01:44.7]} 39. Bc3
{[%clk 0:00:42.8]} 39... Bd7 {[%clk 0:01:44.5]} 40. Ke3 {[%clk 0:00:38.6]} 40...
Be8 {[%clk 0:01:44.4]} 41. Be2 {[%clk 0:00:35.9]} 41... Bd7 {[%clk 0:01:44]} 42.
Bf3 {[%clk 0:00:33.6]} 42... Be8 {[%clk 0:01:43.3]} 43. Be2 {[%clk 0:00:31.6]}
43... Bd7 {[%clk 0:01:43.2]} 44. Bf3 {[%clk 0:00:31.5]} 1/2-1/2

[Event "*** Titled Tuesday Blitz"]
[Site "Chess.com"]
[Date "2020.05.26"]
[Round "8"]
[White "rakshi2005"]
[Black "ThePatrick27"]
[Result "0-1"]
[WhiteElo "2324"]
[BlackElo "2554"]
[TimeControl "180+1"]
[EndTime "11:39:19 PDT"]
[Termination "ThePatrick27 won on time"]

1. e4 {[%clk 0:03:00.9]} 1... e5 {[%clk 0:02:58.6]} 2. Nf3 {[%clk 0:03:00.6]}
2... Nc6 {[%clk 0:02:59.2]} 3. Bc4 {[%clk 0:03:00.8]} 3... Bc5 {[%clk
0:02:58.8]} 4. O-O {[%clk 0:03:01]} 4... d6 {[%clk 0:02:58.7]} 5. d3 {[%clk
0:02:57.8]} 5... Nf6 {[%clk 0:02:58.5]} 6. c3 {[%clk 0:02:58.1]} 6... a6 {[%clk
0:02:53.3]} 7. Bb3 {[%clk 0:02:58.2]} 7... O-O {[%clk 0:02:52.7]} 8. h3 {[%clk
0:02:57.9]} 8... h6 {[%clk 0:02:52.9]} 9. Re1 {[%clk 0:02:57.4]} 9... Ba7 {[%clk
0:02:52]} 10. Nbd2 {[%clk 0:02:57.7]} 10... Re8 {[%clk 0:02:51]} 11. Nf1 {[%clk
0:02:58]} 11... Be6 {[%clk 0:02:48.5]} 12. Ng3 {[%clk 0:02:57.4]} 12... Qd7
{[%clk 0:02:41.9]} 13. Nh4 {[%clk 0:02:55.5]} 13... Bxh3 {[%clk 0:02:31.8]} 14.
gxh3 {[%clk 0:02:43.5]} 14... Qxh3 {[%clk 0:02:32.7]} 15. Nhf5 {[%clk
0:02:19.4]} 15... Ng4 {[%clk 0:01:55.2]} 16. Re2 {[%clk 0:01:17.6]} 16... Ne7
{[%clk 0:01:35]} 17. Ne3 {[%clk 0:00:56.1]} 17... Nh2 {[%clk 0:01:23.5]} 18. Re1
{[%clk 0:00:42.2]} 18... Ng6 {[%clk 0:01:19.9]} 19. Qh5 {[%clk 0:00:38.3]} 19...
Nh4 {[%clk 0:01:15.7]} 20. Bd1 {[%clk 0:00:20.2]} 20... Bxe3 {[%clk 0:01:14.7]}
0-1

[Event "*** Titled Tuesday Blitz"]
[Site "Chess.com"]
[Date "2020.05.26"]
[Round "8"]
[White "wannabe2700"]
[Black "ChessicallyInclined"]
[Result "1-0"]
[WhiteElo "2719"]
[BlackElo "2521"]
[TimeControl "180+1"]
[EndTime "11:39:22 PDT"]
[Termination "wannabe2700 won by resignation"]

1. e4 {[%clk 0:02:51.5]} 1... c5 {[%clk 0:02:57.7]} 2. d3 {[%clk 0:02:51.8]}
2... Nc6 {[%clk 0:02:57.5]} 3. Nc3 {[%clk 0:02:51.9]} 3... g6 {[%clk 0:02:58.4]}
4. f4 {[%clk 0:02:52.1]} 4... Bg7 {[%clk 0:02:59]} 5. Nf3 {[%clk 0:02:52.6]}
5... d6 {[%clk 0:02:59.5]} 6. g3 {[%clk 0:02:52.1]} 6... e5 {[%clk 0:02:59.6]}
7. Bg2 {[%clk 0:02:52]} 7... Nge7 {[%clk 0:03:00.1]} 8. O-O {[%clk 0:02:52]}
8... exf4 {[%clk 0:03:00.6]} 9. Bxf4 {[%clk 0:02:49]} 9... O-O {[%clk
0:03:01.1]} 10. Qd2 {[%clk 0:02:47.6]} 10... d5 {[%clk 0:02:55.1]} 11. Bh6
{[%clk 0:02:41.3]} 11... Bg4 {[%clk 0:02:48.8]} 12. Bxg7 {[%clk 0:02:40.3]}
12... Kxg7 {[%clk 0:02:49.7]} 13. Qg5 {[%clk 0:02:32.7]} 13... Bxf3 {[%clk
0:02:46.2]} 14. Rxf3 {[%clk 0:02:17.4]} 14... f6 {[%clk 0:02:41.7]} 15. Qf4
{[%clk 0:02:12.6]} 15... Ne5 {[%clk 0:02:32]} 16. Rf2 {[%clk 0:02:10.5]} 16...
d4 {[%clk 0:02:31.1]} 17. Nd5 {[%clk 0:01:59.4]} 17... Nxd5 {[%clk 0:02:29.6]}
18. exd5 {[%clk 0:02:00.3]} 18... Qd6 {[%clk 0:02:28.3]} 19. Re1 {[%clk
0:01:24.5]} 19... Rae8 {[%clk 0:02:25.7]} 20. Rfe2 {[%clk 0:01:24.3]} 20... b6
{[%clk 0:02:18.6]} 21. c3 {[%clk 0:01:21.8]} 21... dxc3 {[%clk 0:02:12.7]} 22.
bxc3 {[%clk 0:01:22.7]} 22... Rd8 {[%clk 0:02:11.4]} 23. d4 {[%clk 0:01:18.3]}
23... cxd4 {[%clk 0:02:07.8]} 24. cxd4 {[%clk 0:01:17.1]} 24... Nf7 {[%clk
0:02:05.1]} 25. Re7 {[%clk 0:01:10.4]} 25... a5 {[%clk 0:01:49.8]} 26. R1e6
{[%clk 0:01:02.5]} 26... Qxf4 {[%clk 0:01:43.2]} 27. gxf4 {[%clk 0:01:03.4]}
27... Rb8 {[%clk 0:01:35.2]} 28. d6 {[%clk 0:01:00.8]} 28... b5 {[%clk
0:01:19.3]} 29. Ra7 {[%clk 0:00:50.4]} 29... a4 {[%clk 0:01:14.8]} 30. Ree7
{[%clk 0:00:48.3]} 30... Rb6 {[%clk 0:01:08.4]} 31. Bd5 {[%clk 0:00:47.1]} 31...
Rxd6 {[%clk 0:01:08.2]} 32. Bxf7 {[%clk 0:00:45.4]} 32... Kh6 {[%clk 0:00:58.5]}
33. Be6 {[%clk 0:00:42.9]} 1-0